Cogmind - Beta 10.1 @@@ ROGUE MODE // 2020.10.27 @ 13:37:40 Player: Ery Result: Destroyed by as-23530 with Assembled Blade Performance ------------- Evolutions (0) 0 Regions Visited (4) 800 Robots Destroyed (19) 95 Value Destroyed (135) 135 Prototype IDs (24) 480 Alien Tech Used (0) 0 Bonus (300) 300 TOTAL SCORE: 1810 Bonus ------- Aligned with FarCom 300 Cogmind --------- Core Integrity 0/250 Matter 176/300 Energy 24/265 System Corruption 6% Temperature Cool (47) Movement Core (650) Ox12 Location -9/Mines Parts ------- > --- POWER (1) -------- Reinforced Ion Engine > --- PROPULSION (2) --- (None) > --- UTILITY (2) ------ Large Storage Unit Light Armor Plating > --- WEAPON (2) ------- Guided Plasma Cannon > --- INVENTORY (10) --- Small Storage Unit Large Battery (300) Particle Cannon Particle Cannon Peak State ------------ > --- POWER ------------ Reinforced Ion Engine > --- PROPULSION ------- Light Treads Light Treads > --- UTILITY ---------- Large Storage Unit Experimental Sensor Array > --- WEAPON ----------- Guided Plasma Cannon Grenade Launcher > --- INVENTORY -------- Reinforced Ion Engine Small Storage Unit Large Battery Light Armor Plating Particle Cannon Particle Cannon Particle Cannon Assault Rifle Assault Rifle [Rating: 21] Favorites ----------- Power Reinforced Ion Engine Engine Reinforced Ion Engine Propulsion Light Treads Treads Light Treads Utility Large Storage Unit Device Experimental Sensor Array Storage Large Storage Unit Processor Improved Targeting Computer Protection Light Armor Plating Weapon Assault Rifle Energy Cannon Guided Plasma Cannon Ballistic Gun Assault Rifle Launcher Grenade Launcher Build | -11 -10 -10 -10 -9 ------- Run | Scr Mat Min Exi Min Slots Evolved . | . . . . . Power . | . . . . . Propulsion . | . . . . . Utility . | . . . . . Weapon . | . . . . . Parts Attached 20 | 6 4 1 1 8 Power 3 | 1 1 . . 1 Engine 3 | 1 1 . . 1 Core . | . . . . . Reactor . | . . . . . Propulsion 2 | 2 . . . . Treads 2 | 2 . . . . Leg . | . . . . . Wheel . | . . . . . Hover . | . . . . . Flight . | . . . . . Utility 5 | 1 2 1 . 1 Device 1 | . . 1 . . Storage 2 | 1 1 . . . Processor 1 | . 1 . . . Hackware . | . . . . . Protection 1 | . . . . 1 Artifact . | . . . . . Weapon 10 | 2 1 . 1 6 Energy Gun . | . . . . . Energy Cannon 3 | . . . 1 2 Ballistic Gun 5 | 2 . . . 3 Ballistic Cannon . | . . . . . Launcher 2 | . 1 . . 1 Special Weapon . | . . . . . Impact Weapon . | . . . . . Slashing Weapon . | . . . . . Piercing Weapon . | . . . . . Special Melee Weapon . | . . . . . Unidentified Prototypes 2 | . . 1 1 . Parts Lost 8 | . . . . 8 Power . | . . . . . Propulsion 2 | . . . . 2 Utility 1 | . . . . 1 Weapon 5 | . . . . 5 Highest Loss Streak 8 | . . . . 8 Average Slot Usage (%) 98 | . 97 100 100 93 Engine 13 | . 14 14 14 12 Treads 27 | . 28 28 28 26 Device 10 | . . 13 14 13 Storage 14 | . 14 14 14 14 Processor 2 | . 12 . . . Energy Cannon 2 | . . . 2 8 Ballistic Gun 11 | . 14 14 11 4 Launcher 13 | . 13 14 14 11 Naked Turns . | . . . . . Heaviest Build 40 | 13 31 32 40 40 Greatest Support 40 | 40 40 40 40 40 Greatest Overweight (x) 4 | 4 . . . . Average Overweight (x) . | . . . . . Largest Inventory Capacity 10 | 6 10 10 10 10 Average Capacity 9 | 5 7 10 10 10 Most Carried 10 | 4 10 10 10 10 Average Carried 8 | 3 7 9 9 9 Final Capacity 10 | 6 10 10 10 10 Final Carried 10 | 4 10 10 10 4 Class Distribution -------------------- 96% | Mutant 3% | Skirmisher Dominant Class ---------------- Mutant | -10/Materials Mutant | -10/Mines Mutant | -10/Exiles Mutant | -9/Mines Resources | -11 -10 -10 -10 -9 ----------- Run | Scr Mat Min Exi Min Matter Collected 429 | 260 60 40 . 69 Remotely . | . . . . . Salvage Created 272 | . 117 23 . 132 Parts 23 | . 12 6 . 5 Haulers Intercepted . | . . . . . Recyclers Shooed . | . . . . . Parts Field Recycled . | . . . . . Retrieved Matter . | . . . . . Parts Self-Destructed . | . . . . . Prevented . | . . . . . Kills | -11 -10 -10 -10 -9 ------- Run | Scr Mat Min Exi Min Combat Hostiles Destroyed 15 | . 2 3 . 10 Guns 5 | . . 1 . 4 Cannons 1 | . . . . 1 AOE 9 | . 2 2 . 5 Classes Destroyed 6 | . 3 1 . 2 Worker 2 | . 2 . . . Recycler 1 | . . . . 1 Watcher 1 | . 1 . . . Swarmer 3 | . . 3 . . Grunt 2 | . 2 . . . Assembled 10 | . . . . 10 Best Kill Streak 11 | . 2 3 . 11 Combat Bots Only 10 | . 2 3 . 10 Max Kills in Single Turn 2 | . 1 2 . 2 Gunslinging . | . . . . . Exploded 2 | . 1 1 . 2 Melee . | . . . . . Uniques/NPCs Destroyed . | . . . . . Combat | -11 -10 -10 -10 -9 -------- Run | Scr Mat Min Exi Min Damage Taken 1309 | . 69 82 . 1158 Core 253 | . 17 . . 236 Absorbed by Shields . | . . . . . Core Remaining (%) 100 | 100 . . . . Volleys Fired 35 | . 10 2 . 23 Largest 2 | . 2 2 . 2 Hottest 120 | . 50 50 . 120 Shots Fired 47 | . 14 4 . 29 Gun 32 | . 10 2 . 20 Cannon 6 | . . . . 6 Launcher 9 | . 4 2 . 3 Special . | . . . . . Kinetic 32 | . 10 2 . 20 Thermal 6 | . . . . 6 Explosive 9 | . 4 2 . 3 Electromagnetic . | . . . . . Robot Hit Streak 9 | . 2 1 . 9 Robot Miss Streak 3 | . 1 . . 3 Penetration Max . | . . . . . Secondary Targets . | . . . . . Shots Hit Robots 23 | . 4 1 . 18 Core Hits 33 | . 8 3 . 22 Critical Hits . | . . . . . Critical Kills . | . . . . . Critical Parts Destroyed . | . . . . . Melee Attacks . | . . . . . Impact . | . . . . . Slashing . | . . . . . Piercing . | . . . . . Sneak Attacks . | . . . . . Combat Hostiles . | . . . . . Follow-up Attacks . | . . . . . Damage Inflicted 972 | . 248 88 . 636 Guns 244 | . 36 10 . 198 Cannons 78 | . . . . 78 Explosions 647 | . 212 78 . 357 Melee . | . . . . . Ramming 3 | . . . . 3 Kinetic 244 | . 36 10 . 198 Thermal 78 | . . . . 78 Explosive 647 | . 212 78 . 357 Electromagnetic . | . . . . . Impact . | . . . . . Slashing . | . . . . . Piercing . | . . . . . Highest Corruption 6 | . . . . 6 Average Corruption 6 | . . . . 6 Corruption Purged . | . . . . . Effects 5 | . . . . 5 Matter Fused 1 | . . . . 1 Heat Flow Errors 1 | . . . . 1 Data Loss (major) 1 | . . . . 1 Targeting Errors 2 | . . . . 2 Overload Shots . | . . . . . Overflow Damage 17 | . . . . 17 Projectiles 17 | . . . . 17 Explosions . | . . . . . Melee . | . . . . . Knockbacks . | . . . . . Impact . | . . . . . Kinetic . | . . . . . Secondary . | . . . . . Self-Inflicted Damage 40 | . . 40 . . Shots 1 | . . 1 . . Rammed 1 | . . . . 1 Targets Rammed 1 | . . . . 1 Kicked . | . . . . . Crushed . | . . . . . Highest Temperature 203 | . 6 . . 203 Average Temperature 38 | . 4 . . 41 Received Heat Transfer 39 | . 39 . . . Siege Activations . | . . . . . Robots Corrupted . | . . . . . Combat Hostiles . | . . . . . Parts Fried . | . . . . . Impact Corruptions . | . . . . . Robots Melted . | . . . . . Combat Hostiles . | . . . . . Parts Melted . | . . . . . Heat Transferred 154 | . . . . 154 Parts Sabotaged . | . . . . . Parts Stolen . | . . . . . Parts Stripped . | . . . . . Power Chain Reactions . | . . . . . Missiles Intercepted . | . . . . . Alert | -11 -10 -10 -10 -9 ------- Run | Scr Mat Min Exi Min Peak Influence 107 | . 107 71 . 5 Initial 1 | . . 1 . . Average 24 | . 60 27 . . Maximum Alert Level . | . . . . . Low Security (%) 100 | 100 100 100 . 100 Level 1 . | . . . . . Level 2 . | . . . . . Level 3 . | . . . . . Level 4 . | . . . . . Level 5 . | . . . . . High Security . | . . . . . Max Security . | . . . . . Squads Dispatched 1 | . 1 . . . Investigation 1 | . 1 . . . Extermination . | . . . . . Reinforcement . | . . . . . Assault . | . . . . . Garrison . | . . . . . Intercept . | . . . . . Construction Impeded . | . . . . . Haulers Reinforced . | . . . . . Stealth | -11 -10 -10 -10 -9 --------- Run | Scr Mat Min Exi Min Distress Signals 2 | . . . . 2 Communications Jammed . | . . . . . Distress Signals . | . . . . . Times Spotted 29 | . 8 3 . 18 Peak Tracking Total 13 | . 2 3 . 13 Tactical Retreats 2 | . . . . 2 Traps | -11 -10 -10 -10 -9 ------- Run | Scr Mat Min Exi Min Traps Triggered 1 | . 1 . . . Indirectly . | . . . . . Trap Hack Attempts . | . . . . . Triggered . | . . . . . Disarmed . | . . . . . Reprogrammed . | . . . . . Reused . | . . . . . Traps Extracted . | . . . . . Installed . | . . . . . Triggered . | . . . . . Machines | -11 -10 -10 -10 -9 ---------- Run | Scr Mat Min Exi Min Machines Disabled . | . . . . . Max in Single Turn . | . . . . . Machines Sabotaged . | . . . . . Garrisons Compromised . | . . . . . Overloaded Fab Kills . | . . . . . Fab Network Shutdowns . | . . . . . Hacking | -11 -10 -10 -10 -9 --------- Run | Scr Mat Min Exi Min Machines Accessed 3 | . 1 . 2 . Terminals 1 | . 1 . . . Fabricators . | . . . . . Repair Stations . | . . . . . Recycling Units . | . . . . . Scanalyzers . | . . . . . Garrison Access . | . . . . . Total Hacks 25 | . 1 . 24 . Successful 25 | . 1 . 24 . Failed . | . . . . . Catastrophic . | . . . . . Database Lockouts . | . . . . . Manual 1 | . . . 1 . Terminals 1 | . 1 . . . Fabricators . | . . . . . Repair Stations . | . . . . . Recycling Units . | . . . . . Scanalyzers . | . . . . . Garrison Access . | . . . . . Terminal Hacks 25 | . 1 . 24 . Record 24 | . 1 . 23 . EX-Prototype ID Bank 1 | . . . 1 . Fabricator Hacks . | . . . . . Repair Station Hacks . | . . . . . Recycling Unit Hacks . | . . . . . Scanalyzer . | . . . . . Garrison Access Hacks . | . . . . . Unauthorized Hacks . | . . . . . Terminals . | . . . . . Fabricators . | . . . . . Repair Stations . | . . . . . Recycling Units . | . . . . . Scanalyzers . | . . . . . Garrison Access . | . . . . . Data Cores Recovered . | . . . . . Used . | . . . . . Hacking Detections 1 | . 1 . . . Full Trace Events . | . . . . . Feedback Events . | . . . . . Feedback Blocked . | . . . . . Robot Schematics Acquired . | . . . . . Robots Built . | . . . . . Matter . | . . . . . Time . | . . . . . Total Robot Build Rating . | . . . . . Part Schematics Acquired . | . . . . . Parts Built . | . . . . . Matter . | . . . . . Time . | . . . . . Total Part Build Rating . | . . . . . Parts Repaired . | . . . . . Time . | . . . . . Parts Recycled . | . . . . . Recycled Matter . | . . . . . Retrieved Matter . | . . . . . Retrieved Components . | . . . . . Parts Scanalyzed . | . . . . . Part Schematics Acquired . | . . . . . Parts Damaged . | . . . . . Bothacking | -11 -10 -10 -10 -9 ------------ Run | Scr Mat Min Exi Min Used RIF Installer . | . . . . . Robots Hacked . | . . . . . Non-combat . | . . . . . Combat . | . . . . . Robot Hacks Applied . | . . . . . Relay Couplers Released . | . . . . . Robots Rewired . | . . . . . Allies Hacked . | . . . . . Hacks Repelled . | . . . . . Allies | -11 -10 -10 -10 -9 -------- Run | Scr Mat Min Exi Min Total Allies . | . . . . . Largest Group . | . . . . . Highest-Rated Group . | . . . . . Highest-Rated Ally . | . . . . . Total Orders . | . . . . . Ally Attacks . | . . . . . Total Damage . | . . . . . Kills . | . . . . . Allies Corrupted . | . . . . . Allies Melted . | . . . . . Intel | -11 -10 -10 -10 -9 ------- Run | Scr Mat Min Exi Min Robot Analysis Total . | . . . . . Derelict Logs Recovered 1 | . . 1 . . Drone Launches . | . . . . . Drone Recoveries . | . . . . . Exploration | -11 -10 -10 -10 -9 ------------- Run | Scr Mat Min Exi Min Turns Passed 2421 | 289 430 381 919 402 Spaces Moved 1400 | 177 238 223 572 190 Core 31 | 31 . . . . Treads 1369 | 146 238 223 572 190 Legs . | . . . . . Wheels . | . . . . . Hover . | . . . . . Flight . | . . . . . Fastest Speed 50 | 50 160 160 160 160 Average Speed 159 | 154 160 160 160 160 Slowest Speed 250 | 250 160 160 160 160 Overloaded Moves . | . . . . . Propulsion Burnouts . | . . . . . Robots Hopped . | . . . . . Cave-ins Triggered . | . . . . . Exploration Rate (%) 43 | 9 35 42 90 43 Regions Visited 4 Branch Regions 3 Pre-discovered Areas 1 | . . . 1 . Known Exits Taken . | . . . . . Unknown Exits Taken 4 | 1 1 1 1 . Scrap Searched 2 | . . 2 . . Spaces Dug . | . . . . . Terrain Destroyed 79 | . 27 17 . 35 Melee . | . . . . . Projectile . | . . . . . AOE 79 | . 27 17 . 35 Terrain Rammed . | . . . . . Walls Destroyed . | . . . . . Machines Disabled . | . . . . . Actions | -11 -10 -10 -10 -9 --------- Run | Scr Mat Min Exi Min Total 1545 | 192 275 243 576 259 Wait 56 | . 5 15 . 36 Move 1396 | 176 237 222 571 190 Hop . | . . . . . Pick Up 27 | 10 13 2 2 . Fast Attach 2 | . 2 . . . Attach 13 | 6 1 . . 6 Detach . | . . . . . Swap 5 | . 1 1 1 2 Drop 10 | . 6 1 2 1 Fire 35 | . 10 2 . 23 Melee . | . . . . . Ram . | . . . . . Kick . | . . . . . Crush 1 | . . . . 1 Escape Stasis . | . . . . . Rewire . | . . . . . Trap . | . . . . . Miscellaneous . | . . . . . Route ------- -11/Scrapyard -10/Materials -10/Mines -10/Exiles -9/Mines (discovered 1 exit: [*Mat]) History --------- Turn | Location | Event 38 | -11/Scrapyard | Discovered new exit (range 15) 290 | -11/Scrapyard | Entered Materials 328 | -10/Materials | Build established: Mutant 585 | -10/Materials | Discovered new exit (range 9) 720 | -10/Materials | Entered Mines 743 | -10/Mines | Found a damaged Exp. Sensor Array with a note attached 747 | -10/Mines | Found Prototype Device 748 | -10/Mines | Identified Exp. Sensor Array 830 | -10/Mines | Deemed a non-threat by the Exiles lab entrance 832 | -10/Mines | Discovered new exit (range 5) 1101 | -10/Mines | Entered Exiles 1145 | -10/Exiles | Met 8R-AWN 1168 | -10/Exiles | Met EX-HEX 1230 | -10/Exiles | Met EX-DEC 1289 | -10/Exiles | Visited The Gauntlet 1488 | -10/Exiles | Learned location of Zion (-7) 1545 | -10/Exiles | Discovered new exit (range 12) 1675 | -10/Exiles | Met EX-BIN 1736 | -10/Exiles | Aligned with FarCom system 1737 | -10/Exiles | Given EX-Vault access code 1830 | -10/Exiles | Opened EX-Vault 1839 | -10/Exiles | Found Prototype Energy Cannon 1840 | -10/Exiles | Identified Gui. Plasma Cannon 1898 | -10/Exiles | Warned to stay clear of 0b10 Research branches 2020 | -10/Exiles | Left Exiles lab with Gui. Plasma Cannon 2020 | -10/Exiles | Entered Mines 2143 | -9/Mines | Discovered new exit (range 5) 2287 | -9/Mines | Received a Rocket Launcher from a helpful Derelict 2350 | -9/Mines | Assembled infested the area 2392 | -9/Mines | Core integrity fell below 50% 2418 | -9/Mines | Core integrity fell below 20% 2422 | -9/Mines | Destroyed by as-23530 with Assembled Blade Last Messages --------------- 02375_ as-73547 destroyed. 02377_ System corrupted: Heat flow error (+215). 02378_ Acquired 3 matter. 02379_ The unstable cave ceiling collapses. 02379_ Assault Rifle destroyed. 02383_ as-02914 destroyed. 02387_ as-46413 destroyed. 02393_ as-80852 destroyed. 02397_ Lgt. Treads destroyed. 02398_ System corrupted: Substantial component data lost. 02404_ System corrupted: Assault Rifle targeting data glitched. 02405_ Exp. Sensor Array destroyed. 02405_ Assault Rifle destroyed. 02407_ as-29192 destroyed. 02412_ System corrupted: Particle Cannon targeting data glitched. 02415_ Particle Cannon destroyed. 02416_ Slammed into as-15824. 02418_ Lgt. Treads destroyed. 02421_ System corrupted: Matter fused (-7). 02421_ Destroyed Asb. Hover Unit. Map ----- +----------------------------------------------------+ | | | | | | | | | | | | | | | | | | | | | | | ???????????????????????????????????????????? | | ??????????????????????????#######??????????? | | ?????????????????????###### ##?????????? | | ?????????????????????# ##????????? | | ?????????????????????# ##???????? | | ??????????????????????# ##??????? | | ???????????????????????# #??????? | | ???????????????????????# #??????? | | ???????????????????????# ##??????? | | ???????????????????????## ##???????? | | ????????????????????????# ##???????? | | ????????????????????????## ##??????? | | ?????????????????????????# ###### ##?????? | | ??????????????????????####a#????## ##????? | | ????????????### ??#???# @a#????## #????? | | ??????????### # #?#%####??### #????? | | ??????????# # #%####?## ##????? | | ???????????# =]= #?# ##?????? | | ??????? ! %!% * #?# #??????? | | ??????? %! % ## #?# #??????? | | ???????? # ##?# #?# ##?????? | | ?????????? ????######???# ### #?????? | | ????????????????????????# #?????? | | ????????????????????????# ##?????? | | ????????????????????????###### ####??????? | | ?????????????????????????????# ##?????????? | | ?????????????????????????????# #??????????? | | ?????????????????????????????# #??????????? | | ???????????????????????####### #######????? | | ???????????????? ###??? | | ???????????????????????### ##### !! ##?? | | ?????????????###???????????????# ! #?? | | ?????????????# ???????????????# ! ! #?? | | ????????????## ?????####??????# !!! #?? | | ???????????## #????# ??????# ## #?? | | ??????????# #???# #??????#### ######?? | | ?????????## ##?# #?????????# #??????? | | ???????### """ ### #?????????# #??????? | | ?????### """ ## #?????????# #??????? | +----------------------------------------------------+ Best States ------------- Heat Dissipation 25 Energy Generation 12 Energy Capacity 265 Matter Stores 300 Matter Capacity 300 Sight Range 16 Robot Scan Range 30 Terrain Scan Density 10 Armor Coverage 150 Evasion (%) 40 Targeting Accuracy 6 Recoil Reduction 2 Item Schematics ----------------- None Robot Schematics ------------------ None Fabricated ------------ Nothing Alien Tech Used ----------------- None Achievements -------------- Librarian Risk Taker Tourist Challenges ------------ None Game ------ Seed CompositeHardlightSegregator Manual? 0 Play Time 00:35:15 Cumulative 4.3 hours Start 2020.10.27 @ 13:00:20 End 2020.10.27 @ 13:37:40 Sessions 1 Manual Loads 0 Difficulty Rogue Special Mode None Game No. 8 Rogue 8 Adventurer 0 Explorer 0 Win Type - Total 0 Types 0/0/0/0/0/0/0/0/0 Lore% 8 Gallery% 15 Achievement% 3 Wizard Run 0 Options --------- ASCII 0 Keyboard 0 Movement Mouse Keybinds 0 Fullscreen 1 Font 18/SmallcapsGlow Map View 76x50 Tactical HUD 1 Map Filters NONE Filters NONE Steam 1 RUN: 5b51612c-6b48-411a-9e58-0dcdbbf448c4